bitfinex-derivatives/quotes_SOLF0:USTF0_20250821
["timestamp","ask_amount","ask_price","bid_price","bid_amount"]
[1755738948036,2.79,187.6,187.51,2.9]
[1755738948227,2.79,187.6,187.54,5.3314]
[1755738948733,2.79,187.6,187.51,5.3323]
[1755738949634,2.27438869,187.58,187.51,5.3323]
[1755738949823,2.79,187.57,187.51,5.3323]
[1755738950728,5.06438869,187.55,187.48,15.64]
[1755738951034,2.27438869,187.52,187.49,2.9]
[1755738951635,2.27438869,187.52,187.48,15.64]
[1755738951834,2.79,187.5,187.48,15.64]
[1755738953435,8.1227,187.5,187.48,15.64]
[1755738953735,2.79,187.54,187.48,15.64]
[1755738953936,5.06438869,187.53,187.48,18.54]
[1755738955126,5.3324,187.51,187.48,18.54]
[1755738955732,5.3324,187.51,187.49,2.9]
[1755738955930,5.06438869,187.53,187.5,2.76]
[1755738956439,5.3315,187.54,187.48,15.64]
[1755738956636,5.3315,187.54,187.51,2.76]
[1755738956837,5.3312,187.55,187.52,2.76]
[1755738957032,5.3312,187.55,187.49,2.76]
[1755738957237,2.27438869,187.56,187.5,5.3324]
[1755738957443,7.60538869,187.56,187.52,2.76]
[1755738957635,7.60538869,187.56,187.53,2.76]
[1755738957833,2.83,187.55,187.48,15.64]
[1755738958837,5.3318,187.53,187.49,2.76]
[1755738959037,2.83,187.55,187.48,18.4]
[1755738959436,2.83,187.52,187.48,18.4]
[1755738960134,5.332,187.53,187.48,15.64]
[1755738960341,8.1615,187.54,187.51,2.76]
[1755738960531,5.10438869,187.57,187.49,2.76]
[1755738960737,5.3312,187.55,187.49,8.0927]
[1755738963734,5.3315,187.54,187.49,5.3327]
[1755738963939,5.3315,187.54,187.5,2.76]
[1755738964140,8.1615,187.54,187.5,2.76]
[1755738964340,2.83,187.51,187.48,18.4]
[1755738964541,2.27438869,187.54,187.48,15.64]
[1755738964739,2.27438869,187.54,187.51,2.76]
[1755738965243,2.27438869,187.54,187.48,15.64]
[1755738965438,5.3318,187.53,187.48,15.64]
[1755738965742,2.83,187.53,187.49,2.76]
[1755738966441,2.83,187.52,187.48,15.64]
[1755738966638,2.83,187.52,187.48,18.4]
[1755738967033,5.10438869,187.54,187.48,15.64]
[1755738967240,5.10438869,187.54,187.5,2.76]
[1755738967547,10.43608869,187.54,187.5,2.76]
[1755738968041,2.83,187.53,187.48,15.64]
[1755738968239,2.83,187.53,187.48,18.4]
[1755738968538,2.27438869,187.54,187.48,18.4]
[1755738968738,2.27438869,187.54,187.48,15.64]
[1755738968739,2.83,187.51,187.48,15.64]
[1755738968937,2.27438869,187.54,187.48,15.64]
[1755738969138,5.3326,187.51,187.48,15.64]
[1755738969337,2.83,187.5,187.48,15.64]
[1755738969643,2.83,187.49,187.48,15.64]
[1755738970541,8.1629,187.49,187.48,15.64]
[1755738974042,5.334,187.46,187.39,2.76]
[1755738974439,5.10438869,187.47,187.39,2.76]
[1755738974749,2.27438869,187.47,187.39,2.76]
[1755738975141,2.27438869,187.47,187.43,2.76]
[1755738975347,2.27438869,187.47,187.44,2.76]
[1755738975647,2.27438869,187.47,187.45,2.76]
[1755738977545,7.60708869,187.5,187.43,5.3345]
[1755738977746,2.83,187.49,187.39,2.76]
[1755738978746,2.27438869,187.47,187.39,2.76]
[1755738979738,8.1643,187.44,187.39,2.76]
[1755738979938,8.1643,187.44,187.38,209.93542444]
[1755738981545,8.1643,187.44,187.38,8.096]
[1755738981953,2.83,187.44,187.38,2.76]
[1755738982247,5.10438869,187.44,187.38,2.76]
[1755738982748,2.83,187.43,187.37,11.52]
[1755738982948,2.27438869,187.41,187.37,11.52]
[1755738983144,2.83,187.4,187.37,11.52]
[1755738984953,2.83,187.39,187.37,11.52]
[1755738987551,2.27438869,187.41,187.37,14.48]
[1755738987750,7.60978869,187.41,187.37,14.48]
[1755738988052,5.18438869,187.41,187.37,14.48]
[1755738988646,5.3355,187.4,187.37,14.48]
[1755738988952,2.91,187.4,187.37,11.52]
[1755738989148,8.2455,187.4,187.37,11.52]
[1755738989754,8.2455,187.4,187.37,14.48]
[1755738991555,5.3358,187.39,187.37,14.48]
[1755738992954,10.51988869,187.4,187.37,14.48]
[1755738993552,2.91,187.4,187.37,14.48]
[1755738993754,2.27438869,187.41,187.38,2.96]
[1755738994056,5.18438869,187.41,187.38,2.96]
[1755738994256,10.51958869,187.41,187.38,2.96]
[1755738994757,5.18438869,187.41,187.38,2.96]
[1755738995158,8.2457,187.4,187.37,11.52]
[1755738995353,2.91,187.4,187.37,14.48]
[1755738995757,2.91,187.4,187.37,11.52]
[1755738995959,8.246,187.39,187.37,11.52]
[1755738996954,5.336,187.38,187.37,11.52]
[1755738997760,10.52038869,187.38,187.37,11.52]
[1755738999354,2.27438869,187.43,187.38,2.96]
[1755738999657,2.27438869,187.43,187.37,14.48]
[1755739000258,5.18438869,187.4,187.37,11.52]
[1755739001255,2.91,187.38,187.37,11.52]
[1755739001553,8.246,187.38,187.37,11.52]
[1755739002657,5.3376,187.33,187.28,2.96]
[1755739002862,2.27438869,187.35,187.28,2.96]
[1755739003049,2.27438869,187.35,187.28,8.2986]
[1755739003250,2.27438869,187.35,187.29,2.96]
[1755739003864,7.61128869,187.35,187.29,2.96]
[1755739005152,5.3372,187.34,187.3,2.96]
[1755739005357,2.27438869,187.35,187.29,2.96]
[1755739006161,2.91,187.34,187.29,2.96]
[1755739006361,5.3383,187.3,187.29,2.96]
[1755739007066,5.3383,187.3,187.24,2.96]
[1755739007261,2.27438869,187.32,187.24,2.96]
[1755739007466,2.27438869,187.32,187.22,8.3006]
[1755739007668,2.27438869,187.32,187.23,2.96]
[1755739009265,2.27438869,187.32,187.23,8.3001]
[1755739009666,2.91,187.31,187.23,2.96]
[1755739010863,2.91,187.31,187.23,8.3001]
[1755739011068,2.91,187.31,187.23,2.96]
[1755739012271,2.91,187.31,187.23,8.3003]
[1755739013272,2.91,187.31,187.23,2.96]
[1755739014579,358.76,187.37,187.2,0.9294003]
[1755739014580,2.27438869,187.29,187.2,0.9294003]
[1755739014779,2.27438869,187.29,187.21,2.96]
[1755739015175,2.91,187.3,187.23,2.96]
[1755739015378,5.18438869,187.3,187.23,2.96]
[1755739015583,5.3396,187.26,187.23,2.96]
[1755739016080,5.3392,187.27,187.23,2.96]
[1755739016282,2.91,187.3,187.24,2.88]
[1755739016480,2.27438869,187.28,187.24,2.88]
[1755739016680,5.04438869,187.28,187.24,2.88]
[1755739016875,2.77,187.27,187.17,6.08393794]
[1755739017075,2.77,187.27,187.18,2.88]
[1755739017276,5.3399,187.25,187.2,5.3411]
[1755739017475,5.3399,187.25,187.18,2.88]
[1755739019183,5.3395,187.26,187.22,2.88]
[1755739019483,2.27438869,187.29,187.18,2.88]
[1755739019679,5.04438869,187.29,187.23,2.88]
[1755739019883,2.77,187.28,187.18,2.88]
[1755739020086,5.3394,187.26,187.22,2.88]
[1755739020285,2.27438869,187.29,187.2,2.27438869]
[1755739020473,2.27438869,187.29,187.21,2.88]
[1755739020678,7.61318869,187.29,187.24,5.3398]
[1755739020873,2.77,187.28,187.25,2.88]
[1755739021083,2.77,187.28,187.21,2.88]
[1755739021283,2.27438869,187.29,187.21,2.88]
[1755739022584,5.3391,187.28,187.25,2.88]
[1755739023190,2.77,187.28,187.23,2.88]
[1755739023685,2.77,187.27,187.23,2.88]
[1755739023983,8.1094,187.26,187.22,2.88]
[1755739024380,5.3397,187.25,187.22,2.88]
[1755739024583,8.1097,187.25,187.18,2.88]
[1755739025085,2.77,187.25,187.17,0.92954925]
[1755739025283,5.04438869,187.29,187.18,2.88]
[1755739025483,5.3396,187.26,187.18,2.88]
[1755739026082,2.77,187.27,187.18,2.88]
[1755739026287,5.3398,187.25,187.2,5.3409]
[1755739026590,8.1098,187.25,187.21,2.88]
[1755739026884,2.77,187.24,187.2,5.3409]
[1755739027387,8.11,187.24,187.19,8.2213]
[1755739027686,2.77,187.23,187.14,2.27438869]
[1755739027887,8.1105,187.23,187.17,5.3418]
[1755739028386,8.1105,187.23,187.15,2.88]
[1755739028988,2.77,187.23,187.18,5.3417]
[1755739029189,2.77,187.23,187.19,2.88]
[1755739029384,2.77,187.23,187.15,2.88]
[1755739029582,2.27438869,187.24,187.15,2.88]
[1755739030590,10.38438869,187.24,187.18,5.3415]
[1755739030790,5.04438869,187.24,187.17,2.88]
[1755739031291,10.38438869,187.24,187.18,5.3415]
[1755739032792,8.11,187.24,187.19,5.3413]
[1755739032993,2.77,187.23,187.19,8.2213]
[1755739033390,2.77,187.23,187.2,5.3411]
[1755739033590,2.77,187.23,187.2,8.2211]
[1755739033790,2.77,187.27,187.21,2.88]
[1755739033993,2.27438869,187.27,187.21,2.88]
[1755739034492,2.27438869,187.27,187.22,5.3403]
[1755739034688,2.77,187.26,187.2,2.88]
[1755739035594,2.77,187.26,187.21,5.3408]
[1755739035795,7.61358869,187.27,187.21,8.2208]
[1755739035796,2.77,187.25,187.21,8.2208]
[1755739036793,2.77,187.25,187.22,8.2206]
[1755739036992,5.04438869,187.27,187.23,2.88]
[1755739038202,5.04438869,187.27,187.17,2.27438869]
[1755739038203,5.04438869,187.27,187.21,8.2208]
[1755739038596,5.04438869,187.27,187.21,2.88]
[1755739039095,2.77,187.25,187.21,2.88]
[1755739040896,5.04438869,187.27,187.19,2.88]
[1755739041400,2.77,187.25,187.2,5.3411]
[1755739041602,2.77,187.26,187.19,2.88]
[1755739042103,2.77,187.26,187.19,8.2214]
[1755739042306,2.77,187.26,187.19,2.88]
[1755739044506,5.3397,187.25,187.2,5.3411]
[1755739044802,2.77,187.24,187.2,8.2211]
[1755739045605,5.3397,187.25,187.2,2.88]
[1755739045801,2.77,187.23,187.2,2.88]
[1755739046001,2.77,187.23,187.2,3.01]
[1755739047406,2.95,187.23,187.16,4.47933732]
[1755739047704,2.95,187.23,187.16,7.50139107]
[1755739048095,2.95,187.23,187.17,5.3418]
[1755739049507,2.95,187.23,187.16,3.01]
[1755739051207,2.95,187.23,187.18,5.3417]
[1755739051408,2.95,187.23,187.19,3.01]
[1755739051609,2.95,187.22,187.19,3.01]
[1755739052616,2.95,187.22,187.18,8.3517]
[1755739054218,2.98801974,187.22,187.19,8.3514]
[1755739055815,0.03801974,187.22,187.21,3.01]
[1755739056321,0.03801974,187.22,187.21,8.3508]
[1755739056614,2.95,187.2,187.16,4.49139107]
[1755739056813,0.03801974,187.22,187.14,0.79139107]
[1755739057008,0.03801974,187.22,187.11,0.92979761]
[1755739057213,0.03801974,187.22,187.07,3.01]
[1755739057415,2.27438869,187.16,187.09,3.01]
[1755739058317,0.03416484,187.14,187.06,3.01]
[1755739058519,0.03416484,187.14,187.08,3.01]
[1755739059518,0.03416484,187.14,187.08,8.3543]
[1755739059725,0.03416484,187.14,187.06,2.27438869]
[1755739060226,0.03416484,187.14,187.07,8.3545]
[1755739060420,2.30855353,187.14,187.07,8.3545]
[1755739060926,0.03416484,187.14,187.08,5.3445]
[1755739061122,0.03416484,187.14,187.05,3.01]
[1755739062531,0.03416484,187.14,187.08,3.01]
[1755739062925,0.03416484,187.14,187.08,8.3545]
[1755739063325,0.03416484,187.14,187.04,3.01]
[1755739063526,0.03416484,187.14,187.08,5.3445]
[1755739063729,0.03416484,187.14,187.07,3.01]
[1755739064121,0.03416484,187.14,187.12,3.01]
[1755739064325,0.03416484,187.14,187.05,2.27438869]
[1755739064524,0.03416484,187.14,187.04,3.01]
[1755739064724,0.03416484,187.14,187.07,8.3548]
[1755739065030,4.07073801,187.13,187.07,3.01]
[1755739065227,4.07073801,187.12,187.09,3.01]
[1755739065425,0.03416484,187.14,187.1,3.01]
[1755739065726,4.06998432,187.13,187.11,3.01]
[1755739065933,4.06998432,187.12,187.11,3.01]
[1755739068135,4.06998432,187.12,187.04,3.01]
[1755739068327,0.0373623,187.14,187.04,3.01]
[1755739068530,6.34414869,187.13,187.04,3.01]
[1755739068731,4.06976,187.12,187.04,3.01]
[1755739068929,0.03749679,187.11,187.04,3.01]
[1755739069136,0.03749679,187.11,187.06,3.01]
[1755739069339,0.03749679,187.11,187.04,3.01]
[1755739069630,0.03749679,187.11,187.07,3.01]
[1755739070639,0.03749679,187.11,187.1,8.354]
[1755739073340,5.98414903,187.22,187.15,5.3425]
[1755739073538,6.34737337,187.21,187.15,3.01]
[1755739073735,4.07298468,187.2,187.15,3.01]
[1755739074142,4.07298468,187.2,187.11,2.27438869]
[1755739074342,4.07298468,187.2,187.13,3.01]
[1755739074534,4.07298468,187.19,187.13,3.01]
[1755739074727,4.07298468,187.18,187.15,5.3425]
[1755739074933,4.07298468,187.17,187.15,8.3525]
[1755739075134,7.61528869,187.21,187.15,8.3525]
[1755739075331,4.07317908,187.2,187.15,5.3425]
[1755739075638,4.07317908,187.19,187.12,3.01]
[1755739075842,7.61498869,187.22,187.12,3.01]
[1755739075843,4.07317908,187.18,187.12,3.01]
[1755739076034,7.61498869,187.22,187.12,3.01]
[1755739076239,4.0735902,187.21,187.12,3.01]
[1755739076441,4.0735902,187.2,187.12,3.01]
[1755739076640,4.0735902,187.19,187.12,3.01]
[1755739076838,4.0735902,187.18,187.12,3.01]
[1755739077041,7.61498869,187.22,187.12,3.01]
[1755739077234,4.07576382,187.21,187.12,3.01]
[1755739077435,4.07576382,187.2,187.17,5.342]
[1755739077635,4.07576382,187.2,187.12,3.01]
[1755739077839,9.41716382,187.19,187.15,5.3425]
[1755739078041,4.07576382,187.18,187.15,5.3425]
[1755739078343,4.07576382,187.18,187.11,2.27438869]
[1755739078543,4.07576382,187.17,187.09,2.78]
[1755739079134,4.07576382,187.16,187.09,2.78]
[1755739079631,4.07576382,187.16,187.11,5.3435]
[1755739079831,4.07576382,187.16,187.08,2.27438869]
[1755739080035,4.07576382,187.16,187.12,2.78]
[1755739080237,4.07576382,187.15,187.12,8.1232]
[1755739080541,5.3418,187.18,187.12,8.1232]
[1755739080738,4.07732858,187.17,187.09,2.78]
[1755739081041,4.07732858,187.16,187.09,2.78]
[1755739081233,4.07732858,187.15,187.09,2.78]
[1755739081433,7.61578869,187.2,187.09,2.78]
[1755739081742,4.07914513,187.19,187.09,2.78]
[1755739081932,4.07914513,187.18,187.09,2.78]
[1755739082132,4.07914513,187.17,187.12,2.78]
[1755739082337,4.07914513,187.16,187.11,2.27438869]
[1755739082536,7.61528869,187.21,187.13,2.78]
[1755739082741,4.08055959,187.2,187.13,2.78]
[1755739083037,4.08055959,187.19,187.13,2.78]
[1755739083239,4.08055959,187.18,187.16,8.1221]
[1755739083436,4.08055959,187.17,187.13,2.78]
[1755739083643,4.08055959,187.16,187.13,2.78]
[1755739083845,2.27438869,187.21,187.11,2.27438869]
[1755739084045,4.08194346,187.2,187.11,2.27438869]
[1755739084339,5.3418,187.18,187.11,2.27438869]
[1755739084538,4.08194346,187.17,187.13,5.3429]
[1755739085441,4.08194346,187.16,187.12,5.3434]
[1755739085637,4.08194346,187.15,187.12,5.3434]
[1755739085845,5.342,187.17,187.12,5.3434]
[1755739086145,4.08151835,187.16,187.13,5.3431]
[1755739086344,4.08151835,187.15,187.13,5.3431]
[1755739086549,4.08274857,187.14,187.13,5.3431]
[1755739087746,4.08274857,187.14,187.13,8.1231]
[1755739087940,5.98414903,187.22,187.13,2.78]
[1755739088147,4.083686,187.21,187.13,2.78]
[1755739088348,4.083686,187.2,187.13,2.78]
[1755739088645,4.083686,187.19,187.13,2.78]
[1755739088850,4.083686,187.18,187.13,2.78]
[1755739089039,5.98414903,187.22,187.13,2.78]
[1755739089040,4.083686,187.17,187.13,2.78]
[1755739089244,4.083686,187.16,187.13,2.78]
[1755739089445,5.98414903,187.22,187.14,5.3428]
[1755739089641,4.08336441,187.21,187.14,5.3428]
[1755739089847,4.08336441,187.2,187.13,2.78]
[1755739090154,4.08336441,187.19,187.13,2.78]
[1755739090347,4.08336441,187.18,187.13,2.78]
[1755739090549,4.08336441,187.17,187.13,2.78]
[1755739090750,4.08336441,187.16,187.13,2.78]
[1755739090946,4.08336441,187.15,187.13,8.1231]
[1755739091146,5.3419,187.18,187.13,8.1231]
[1755739091348,4.08644686,187.17,187.14,5.3428]
[1755739091545,4.08644686,187.16,187.11,2.27438869]
[1755739091848,5.98414903,187.22,187.15,2.78]
[1755739092046,4.08723867,187.21,187.15,2.78]
[1755739092246,9.42863867,187.2,187.15,8.1226]
[1755739092452,4.08723867,187.19,187.12,2.78]
[1755739092653,4.08723867,187.18,187.12,2.78]
[1755739092941,4.08723867,187.17,187.13,2.78]
[1755739093141,4.08723867,187.16,187.13,2.78]
[1755739093356,4.08723867,187.15,187.13,2.78]
[1755739093648,4.08723867,187.14,187.11,2.78]
[1755739093849,5.342,187.17,187.12,8.1233]
[1755739094045,4.08809186,187.16,187.12,2.78]
[1755739094250,4.08809186,187.15,187.12,2.78]
[1755739094454,4.08809186,187.14,187.12,2.78]
[1755739094651,4.08809186,187.13,187.12,2.78]
[1755739094853,5.342,187.17,187.12,2.78]
[1755739095655,5.3418,187.18,187.13,2.78]
[1755739096650,5.3421,187.17,187.13,2.78]
[1755739097352,5.3424,187.16,187.11,5.3436]
[1755739097557,5.3424,187.16,187.11,8.1236]
[1755739099661,5.3424,187.16,187.11,5.3436]
[1755739099854,5.3424,187.16,187.12,2.78]
[1755739100157,5.3426,187.15,187.11,2.78]
[1755739100858,2.27438869,187.2,187.11,2.78]
[1755739100859,5.3423,187.16,187.12,2.78]
[1755739101059,2.27438869,187.2,187.1,2.78]
[1755739101462,5.98414903,187.24,187.1,2.78]
[1755739101757,2.27438869,187.22,187.1,2.78]
[1755739101958,5.3413,187.2,187.14,5.3426]
[1755739102560,5.3415,187.19,187.14,8.1226]
[1755739102960,5.3415,187.19,187.14,5.3426]
[1755739103259,5.3415,187.19,187.14,8.1226]
[1755739104359,5.3412,187.2,187.15,2.78]
[1755739104559,2.27438869,187.22,187.16,2.78]
[1755739104862,0.03803336,187.18,187.17,2.78]
[1755739105256,2.27438869,187.25,187.17,2.78]
[1755739105460,5.3404,187.23,187.17,8.1218]
[1755739105661,0.03749131,187.19,187.18,2.78]
[1755739106862,0.03749131,187.19,187.13,3.04]
[1755739107570,0.03749131,187.19,187.17,3.04]
[1755739108860,0.03749131,187.19,187.18,3.04]
[1755739110666,0.03749131,187.19,187.18,8.3817]
[1755739116575,0.03749131,187.19,187.18,5.3417]
[1755739117070,0.03749131,187.19,187.17,5.37600284]
[1755739117273,0.03749131,187.19,187.17,0.03410284]
[1755739119066,5.3417,187.18,187.17,0.03410284]
[1755739120271,5.37899131,187.19,187.17,0.03410284]
[1755739120569,0.03749131,187.19,187.17,0.03410284]
[1755739124576,5.37899131,187.19,187.17,0.03410284]
[1755739124772,2.31188,187.19,187.17,0.03410284]
[1755739124976,5.3417,187.18,187.17,0.03410284]
[1755739125177,0.54,187.18,187.08,4.49311258]
[1755739125383,2.27438869,187.14,187.06,4.49311258]
[1755739125679,2.27438869,187.14,187.05,7.53311258]
[1755739126078,5.3434,187.13,187.07,5.3448]
[1755739126472,0.03460992,187.11,187.07,5.3448]
[1755739126674,0.03460992,187.11,187.07,8.3848]
[1755739127076,0.03460992,187.11,187.05,5.3451]
[1755739127279,5.3441,187.1,187.05,5.3451]
[1755739127477,5.3441,187.1,187.05,8.3851]
[1755739127683,0.03460992,187.11,187.05,8.3851]
[1755739127883,5.37840992,187.11,187.06,8.3851]
[1755739129184,5.344,187.1,187.04,5.3455]
[1755739129779,5.344,187.1,187.05,5.3454]
[1755739129979,5.344,187.1,187.05,8.3854]
[1755739130182,7.65279861,187.11,187.05,8.3854]
[1755739130782,2.30899861,187.11,187.05,3.04]
[1755739130981,2.30899861,187.11,187.03,205.11063391]
[1755739131181,2.27438869,187.09,187.03,205.11063391]
[1755739131489,5.3448,187.08,187.03,205.11063391]
[1755739132087,5.3448,187.08,187.03,210.45643391]
[1755739132280,2.27438869,187.09,187.01,3.04]
[1755739132481,2.27438869,187.09,187.0,4.49311258]
[1755739132482,2.27438869,187.09,187.0,7.53311258]
[1755739132681,2.27438869,187.09,187.03,5.3457]
[1755739132885,7.61888869,187.09,187.02,3.04]
[1755739133085,0.03474695,187.06,187.03,3.04]
[1755739133495,0.03474695,187.06,187.04,5.3454]
[1755739133993,0.03474695,187.06,187.03,8.3859]
[1755739134289,0.03474695,187.06,187.03,5.3459]
[1755739134488,0.03474695,187.06,186.97,5.42363118]
[1755739134686,0.03474695,187.06,187.04,3.04]
[1755739135093,0.03474695,187.06,186.99,3.04]
[1755739135695,0.03474695,187.06,187.0,5.3466]
[1755739138599,0.03474695,187.06,187.02,2.98]
[1755739139203,0.03474695,187.06,187.02,8.3262]
[1755739140294,0.03474695,187.06,187.04,2.98]
[1755739140501,0.03474695,187.06,187.01,2.27438869]
[1755739140704,0.03474695,187.06,187.02,2.98]
[1755739140903,0.03474695,187.06,187.05,5.3454]
[1755739141102,0.03474695,187.06,187.05,8.3254]
[1755739141696,0.03474695,187.06,187.0,2.27438869]
[1755739141894,0.03474695,187.06,187.02,2.98]
[1755739142099,0.03474695,187.06,187.03,2.98]
[1755739142491,0.03474695,187.06,186.99,2.27438869]
[1755739142704,0.03474695,187.06,187.0,2.98]
[1755739143002,0.03474695,187.06,187.05,2.98]
[1755739143598,0.03474695,187.06,187.05,8.3254]
[1755739143802,0.03474695,187.06,187.05,2.98]
[1755739144601,0.03474695,187.06,187.02,2.98]
[1755739144800,0.03474695,187.06,187.03,2.98]
[1755739145301,0.03474695,187.06,187.01,8.3265]
[1755739145605,0.03474695,187.06,187.02,8.3262]
[1755739145801,0.03474695,187.06,186.99,2.98]
[1755739146701,0.03474695,187.06,187.01,8.3265]
[1755739147706,0.03474695,187.06,187.02,2.98]
[1755739148196,2.30913564,187.06,187.02,2.98]
[1755739148401,2.30913564,187.06,186.99,2.98]
[1755739148598,2.27438869,187.04,186.96,2.98]
[1755739148799,2.27438869,187.02,186.89,4.49311258]
[1755739148996,2.27438869,187.0,186.91,2.98]
[1755739149498,0.03679623,186.97,186.9,0.93081727]
[1755739149805,2.31118492,186.97,186.9,8.3295]
[1755739150497,0.03679623,186.97,186.9,8.3295]
[1755739150803,2.31118492,186.97,186.9,2.98]
[1755739151200,0.03679623,186.97,186.91,2.98]
[1755739151701,0.03679623,186.97,186.88,2.27438869]
[1755739151702,0.03679623,186.97,186.94,2.98]
[1755739151898,0.03679623,186.97,186.89,2.98]
[1755739152705,0.03679623,186.97,186.91,5.3492]
[1755739152906,0.03679623,186.97,186.89,2.98]
[1755739153206,0.03679623,186.97,186.92,8.3291]
[1755739153403,0.03679623,186.97,186.92,5.3491]
[1755739153901,0.03679623,186.97,186.92,8.3291]
[1755739154105,0.03679623,186.97,186.93,8.3287]
[1755739154401,0.03679623,186.97,186.93,2.98]
[1755739154606,0.03679623,186.97,186.9,2.98]
[1755739155006,2.27438869,186.98,186.9,2.98]
[1755739155408,0.03981934,186.95,186.9,2.98]
[1755739155606,0.03981934,186.95,186.94,8.3285]
[1755739155810,2.27438869,187.04,186.94,2.98]
[1755739156110,2.27438869,187.04,186.95,2.98]
[1755739156608,2.27438869,187.04,186.98,5.3471]
[1755739157705,7.62008869,187.04,186.98,5.3471]
[1755739158006,0.03,187.03,186.98,5.3471]
[1755739158410,0.03,187.02,186.99,5.3471]
[1755739158608,2.27438869,187.04,186.99,8.3271]
[1755739158809,2.30438869,187.04,187.0,2.98]
[1755739159508,2.27438869,187.04,187.0,2.98]
[1755739159706,0.03,187.03,187.0,8.3267]
[1755739160011,2.27438869,187.04,187.0,8.3267]
[1755739160212,2.30438869,187.04,187.0,8.3267]
[1755739160911,0.03,187.03,187.0,8.3267]
[1755739161207,0.03,187.03,186.94,2.98]
[1755739161409,2.27438869,187.01,186.94,2.98]
[1755739162315,2.27438869,187.01,186.95,5.348]
[1755739162500,2.27438869,187.01,186.94,2.98]
[1755739162902,2.27438869,187.01,186.96,5.3479]
[1755739163107,2.30438869,187.01,186.96,8.3279]
[1755739163310,2.27438869,187.03,186.92,2.98]
[1755739163510,7.61998869,187.05,186.94,2.98]
[1755739163814,2.27438869,187.05,186.94,2.98]
[1755739164701,0.03,187.04,186.94,2.98]
[1755739165110,2.27438869,187.05,187.01,2.98]
[1755739165311,2.27438869,187.07,186.96,2.98]
[1755739165608,2.27438869,187.07,187.04,5.3455]
[1755739165811,0.03,187.06,186.99,3.01]
[1755739166004,2.27438869,187.05,186.99,3.01]
[1755739167413,2.27438869,187.05,186.99,8.3569]
[1755739167414,7.61978869,187.05,186.99,8.3569]
[1755739167611,7.61978869,187.05,186.99,3.01]
[1755739167812,0.03,187.03,186.99,3.01]
[1755739168114,0.03,187.02,186.99,3.01]
[1755739168814,0.03,187.01,186.97,5.3476]
[1755739169013,0.03,187.01,186.97,8.3576]
[1755739169516,0.03,187.04,186.97,3.01]
[1755739170213,0.03,187.04,186.99,5.3469]
[1755739170515,2.27438869,187.05,186.99,3.01]
[1755739170717,0.03,187.02,186.99,3.01]
[1755739170916,0.03,187.04,186.94,5.28438869]
[1755739171306,5.3757,187.04,186.99,5.3471]
[1755739171511,0.03,187.03,186.99,8.3571]
[1755739172419,0.03,187.03,186.99,3.01]
[1755739173019,0.03,187.02,186.99,3.01]
[1755739173615,0.03,187.02,186.98,8.3574]
[1755739173815,0.03,187.02,186.98,3.01]
[1755739174813,5.3463,187.02,186.95,3.01]
[1755739175519,5.3463,187.02,186.96,5.3477]
[1755739176319,5.3463,187.02,186.95,8.3582]
[1755739178521,7.62068869,187.02,186.95,8.3582]
[1755739178721,5.3466,187.01,186.95,3.01]
[1755739182119,5.3466,187.01,186.91,2.27438869]
[1755739182120,2.30438869,186.99,186.91,3.01]
[1755739183528,5.3481,186.96,186.91,3.01]
[1755739183725,0.03,186.95,186.91,3.01]
[1755739185921,7.62248869,186.96,186.87,5.28438869]